Cogmind - Beta 15 @@@ ROGUE MODE // 2025.06.28 @ 23:12:10 Player: puppuppit Result: Destroyed by D-53 Grenadier with Mini Grenade Launcher Performance ------------- Evolutions (0) 0 Regions Visited (2) 400 Robots Destroyed (44) 220 Value Destroyed (716) 716 Prototype IDs (2) 40 Alien Tech Used (0) 0 Bonus (0) 0 TOTAL SCORE: 1376 Bonus ------- None Cogmind --------- Core Integrity 0/250 Matter 194/300 Energy 100/100 System Corruption 0% Temperature Cool (0) Movement Core (400) Ox7 Location -10/Mines Parts ------- > --- POWER (1) -------- (None) > --- PROPULSION (2) --- (None) > --- UTILITY (2) ------ Large Storage Unit Core Shielding > --- WEAPON (2) ------- Light Assault Rifle Light Assault Rifle > --- INVENTORY (15) --- Light Treads Light Treads Medium Matter Pod (100) Improved Terrain Scanner Propulsion Shielding Weapon Shielding Hacking Suite Tractor Beam Light Assault Rifle Light Assault Rifle Light Cannon Grenade Launcher Peak State ------------ > --- POWER ------------ Ion Engine > --- PROPULSION ------- Light Treads Light Treads > --- UTILITY ---------- Small Storage Unit Improved Terrain Scanner > --- WEAPON ----------- Assault Rifle Assault Rifle > --- INVENTORY -------- Medium Matter Pod Improved Terrain Scanner Propulsion Shielding Weapon Shielding Light Assault Rifle Light Cannon Grenade Launcher Grenade Launcher [Rating: 10] Favorites ----------- Power Ion Engine Engine Ion Engine Propulsion Light Treads Treads Light Treads Utility Large Storage Unit Device Improved Terrain Scanner Storage Large Storage Unit Protection Weapon Shielding Weapon Assault Rifle Ballistic Gun Assault Rifle Launcher Grenade Launcher Build | -11 -10 -10 ------- Run | Yrd Mat Min Slots Evolved . | . . . Power . | . . . Propulsion . | . . . Utility . | . . . Weapon . | . . . Parts Attached 18 | 8 8 2 Power 2 | 1 1 . Engine 2 | 1 1 . Core . | . . . Reactor . | . . . Propulsion 3 | 2 1 . Treads 3 | 2 1 . Leg . | . . . Wheel . | . . . Hover . | . . . Flight . | . . . Utility 6 | 2 4 . Device 2 | 1 1 . Storage 2 | 1 1 . Processor . | . . . Hackware . | . . . Protection 2 | . 2 . Artifact . | . . . Weapon 7 | 3 2 2 Energy Gun . | . . . Energy Cannon . | . . . Ballistic Gun 5 | 3 . 2 Ballistic Cannon . | . . . Launcher 2 | . 2 . Special Weapon . | . . . Impact Weapon . | . . . Slashing Weapon . | . . . Piercing Weapon . | . . . Special Melee Weapon . | . . . Unidentified Prototypes . | . . . Parts Lost 6 | . . 6 Power 1 | . . 1 Propulsion 2 | . . 2 Utility . | . . . Weapon 3 | . . 3 Highest Loss Streak 4 | . . 4 To Critical Strikes . | . . . Average Backups 9 | 1 10 13 Power . | . . . Propulsion . | . . 2 Utility 4 | . 4 6 Weapon 4 | . 5 5 Tool/Special . | . . . Unused Backups 9 | . 2 7 Power . | . . . Propulsion 1 | . . 1 Utility 5 | . 1 4 Weapon 3 | . 1 2 Tool/Special . | . . . Average Slot Usage (%) 99 | . 100 96 Engine 13 | . 14 13 Treads 27 | . 28 26 Device 4 | . 4 5 Storage 14 | . 14 14 Protection 9 | . 10 8 Ballistic Gun 27 | . 27 25 Peak Build Rating 10 | 9 10 10 Average Rating 8 | 6 8 8 On Entrance 5 | . 9 8 Naked Turns . | . . . Heaviest Build 30 | 15 30 30 Greatest Support 40 | 40 40 40 Greatest Overweight (x) . | . . . Average Overweight (x) . | . . . Largest Inventory Capacity 15 | 8 15 15 Average Capacity 11 | 7 11 15 Most Carried 15 | 2 15 15 Average Carried 9 | 1 10 13 Final Capacity 15 | 8 15 15 Final Carried 15 | 2 15 12 Class Distribution -------------------- 100% | Mutant Dominant Class ---------------- Mutant | -10/Materials Mutant | -10/Mines Resources | -11 -10 -10 ----------- Run | Yrd Mat Min Matter Collected 1098 | 358 712 28 Remotely . | . . . Salvage Created 1109 | 225 797 87 Parts 92 | 17 74 1 Haulers Intercepted 2 | . 2 . Recyclers Shooed 3 | 1 2 . Parts Field Recycled . | . . . Retrieved Matter . | . . . Parts Self-Destructed . | . . . Prevented . | . . . Kills | -11 -10 -10 ------- Run | Yrd Mat Min Combat Hostiles Destroyed 39 | . 18 21 Guns 14 | . 12 2 AOE 25 | . 6 19 Classes Destroyed 12 | 3 7 2 Worker 9 | 2 6 1 Builder 1 | . 1 . Tunneler 6 | 4 2 . Hauler 2 | . 2 . Recycler 2 | 1 1 . Mechanic 1 | . 1 . Operator 1 | . 1 . Watcher 3 | . 3 . Swarmer 6 | . 6 . Grunt 12 | . 12 . Demolisher 1 | . . 1 Assembled 20 | . . 20 Best Kill Streak 21 | 3 6 21 Combat Bots Only 20 | . 4 20 Max Kills in Single Turn 8 | 2 4 8 Gunslinging . | . . . Exploded 8 | . 3 8 Melee . | . . . Uniques/NPCs Destroyed . | . . . Combat | -11 -10 -10 -------- Run | Yrd Mat Min Hostile Shots Fired 91 | . 56 35 Missed 19 | . 15 4 Hits 72 | . 41 31 Projectile 72 | . 41 31 AOE 10 | . . 10 Critical Strikes 1 | . 1 . Part Disruptions 4 | . . 4 Damage Taken 1190 | . 517 673 Core 278 | . 89 189 Absorbed by Shields . | . . . Redirected to Shielding 71 | . 30 41 Core Remaining (%) 100 | 100 . . Volleys Fired 112 | 15 84 13 Largest 2 | 2 2 2 Hottest 60 | 40 50 60 Shots Fired 217 | 30 165 22 Gun 206 | 30 160 16 Cannon . | . . . Launcher 11 | . 5 6 Special . | . . . Kinetic 206 | 30 160 16 Thermal . | . . . Explosive 11 | . 5 6 Electromagnetic . | . . . Robot Hit Streak 16 | 11 9 16 Robot Miss Streak 4 | 2 4 2 Penetration Max . | . . . Secondary Targets 2 | . 1 1 Max Gunslinging Chain 1 | . 1 1 Shots Hit Robots 136 | 21 102 13 Core Hits 111 | 9 55 47 Critical Kills 3 | . 3 . Critical Parts Destroyed 1 | . 1 . Critical Strikes 4 | . 4 . Destroy 4 | . 4 . Melee Attacks . | . . . Impact . | . . . Slashing . | . . . Piercing . | . . . Sneak Attacks . | . . . Combat Hostiles . | . . . Follow-up Attacks . | . . . Damage Inflicted 3823 | 257 2166 1400 Guns 1657 | 257 1294 106 Cannons . | . . . Explosions 2166 | . 872 1294 Melee . | . . . Ramming . | . . . Kinetic 1657 | 257 1294 106 Thermal 419 | . 419 . Explosive 1747 | . 453 1294 Electromagnetic . | . . . Impact . | . . . Slashing . | . . . Piercing . | . . . Highest Corruption . | . . . Average Corruption . | . . . Corruption Purged . | . . . Corruption Blocked . | . . . Overload Shots . | . . . Overflow Damage 139 | . 120 19 Projectiles . | . . . Explosions 139 | . 120 19 Melee . | . . . Knockbacks . | . . . Impact . | . . . Kinetic . | . . . Secondary . | . . . Self-Inflicted Damage 31 | . 24 7 Shots 2 | . 1 1 Rammed . | . . . Targets Rammed . | . . . Kicked . | . . . Crushed . | . . . Highest Temperature 85 | . 8 85 Average Temperature 30 | . 3 46 Received Heat Transfer 456 | . 276 180 Siege Activations . | . . . Martial Activations . | . . . Shielding Activations . | . . . Robots Disrupted . | . . . Combat Hostiles . | . . . Robots Corrupted . | . . . Combat Hostiles . | . . . Parts Fried . | . . . Impact Corruptions . | . . . Robots Melted . | . . . Combat Hostiles . | . . . Parts Melted . | . . . Heat Transferred 250 | . 250 . Parts Sabotaged . | . . . Parts Stolen . | . . . Parts Stripped . | . . . Power Chain Reactions . | . . . Alert | -11 -10 -10 ------- Run | Yrd Mat Min Maximum Alert Level 1 | . 1 . Low Security (%) 63 | 100 55 100 Level 1 36 | . 44 . Level 2 . | . . . Level 3 . | . . . Level 4 . | . . . Level 5 . | . . . High Security . | . . . Max Security . | . . . Peak Influence 297 | 15 297 126 Initial 114 | . 3 114 Average 140 | 3 160 86 Influence Increases 788 | 35 701 52 Destroy 0b10 Robot/C 380 | . 360 20 Destroy 0b10 Robot/NC 125 | 35 85 5 Destroy Leader 80 | . 80 . Successful Hack 22 | . 22 . Select Force Hacks 60 | . 60 . Disable Machine 30 | . 30 . Destroy Structure 91 | . 64 27 Influence Decreases 762 | 30 413 319 Entered New Map 181 | . 2 179 Time Decay 521 | 30 411 80 Lost Part 60 | . . 60 Squads Dispatched 4 | . 4 . Investigation 3 | . 3 . Extermination . | . . . Reinforcement 1 | . 1 . Assault . | . . . Garrison . | . . . Intercept . | . . . Searches Triggered . | . . . Construction Impeded . | . . . Haulers Reinforced . | . . . Active Scanning Responses . | . . . Cargo Convoy Interrupts . | . . . Stealth | -11 -10 -10 --------- Run | Yrd Mat Min Distress Signals 2 | . 2 . Communications Jammed . | . . . Distress Signals . | . . . Times Spotted 49 | . 28 21 Peak Tracking Total 20 | . 4 20 Tactical Retreats . | . . . Traps | -11 -10 -10 ------- Run | Yrd Mat Min Traps Triggered . | . . . Indirectly . | . . . Trap Hack Attempts . | . . . Triggered . | . . . Disarmed . | . . . Reprogrammed . | . . . Reused . | . . . Traps Extracted . | . . . Installed . | . . . Triggered . | . . . Machines | -11 -10 -10 ---------- Run | Yrd Mat Min Machines Disabled 2 | . 2 . Max in Single Turn 2 | . 2 . Machines Repaired . | . . . Machines Dismantled . | . . . Machines Sabotaged . | . . . Overloaded Fab Kills . | . . . Hacking | -11 -10 -10 --------- Run | Yrd Mat Min Machines Accessed 7 | . 7 . Terminals 5 | . 5 . Fabricators . | . . . Repair Stations . | . . . Recycling Units 2 | . 2 . Scanalyzers . | . . . Garrison Access . | . . . Total Hacks 20 | . 20 . Successful 13 | . 13 . Failed 7 | . 7 . Catastrophic 1 | . 1 . Database Lockouts . | . . . Manual 18 | . 18 . Terminals 18 | . 18 . Fabricators . | . . . Repair Stations . | . . . Recycling Units 2 | . 2 . Scanalyzers . | . . . Garrison Access . | . . . Terminal Hacks 6 | . 6 . Robot Analysis 5 | . 5 . Prototype ID Bank 1 | . 1 . Fabricator Hacks . | . . . Repair Station Hacks . | . . . Recycling Unit Hacks . | . . . Scanalyzer . | . . . Garrison Access Hacks . | . . . Unauthorized Hacks 7 | . 7 . Terminals 5 | . 5 . Botnet 5 | . 5 . Fabricators . | . . . Repair Stations . | . . . Recycling Units 2 | . 2 . Tunnel 2 | . 2 . Scanalyzers . | . . . Garrison Access . | . . . Data Cores Recovered . | . . . Used . | . . . Hacking Detections 5 | . 5 . Full Trace Events 1 | . 1 . Feedback Events . | . . . Feedback Blocked . | . . . Robot Schematics Acquired . | . . . Robots Built . | . . . Authchips . | . . . Time . | . . . Total Robot Build Rating . | . . . Part Schematics Acquired . | . . . Parts Built . | . . . Authchips . | . . . Time . | . . . Total Part Build Rating . | . . . Parts Repaired . | . . . Time . | . . . Parts Recycled . | . . . Recycled Matter . | . . . Retrieved Matter . | . . . Retrieved Components . | . . . Parts Scanalyzed . | . . . Part Schematics Acquired . | . . . Parts Damaged . | . . . Bothacking | -11 -10 -10 ------------ Run | Yrd Mat Min Used RIF Installer . | . . . Robots Hacked . | . . . Non-combat . | . . . Combat . | . . . Robot Hacks Applied . | . . . Relay Couplers Released . | . . . Fabnet Peak Effective % . | . . . Robots Rewired . | . . . Allies Hacked . | . . . Hacks Repelled . | . . . Allies | -11 -10 -10 -------- Run | Yrd Mat Min Total Allies . | . . . Largest Group . | . . . Highest-Rated Group . | . . . Highest-Rated Ally . | . . . Total Orders . | . . . Ally Attacks . | . . . Total Damage . | . . . Kills . | . . . Allies Corrupted . | . . . Allies Melted . | . . . Intel | -11 -10 -10 ------- Run | Yrd Mat Min Active Infowar (turns) 510 | 49 388 73 Terrain 510 | 49 388 73 Robot Analysis Total 5 | . 5 . Derelict Logs Recovered . | . . . Drone Launches . | . . . Drone Recoveries . | . . . Exploration | -11 -10 -10 ------------- Run | Yrd Mat Min Turns Passed 1687 | 133 1391 163 Spaces Moved 762 | 52 679 31 Core 6 | 6 . . Treads 756 | 46 679 31 Legs . | . . . Wheels . | . . . Hover . | . . . Flight . | . . . Fastest Speed 50 | 50 160 160 Average Speed 159 | 147 160 160 Slowest Speed 160 | 160 160 160 Overloaded Moves . | . . . Propulsion Burnouts . | . . . Robots Hopped . | . . . Potential Cave-ins . | . . . Cave-ins Triggered . | . . . Exploration Rate (%) 31 | 5 81 8 Regions Visited 2 Branch Regions 1 Pre-discovered Areas 2 | . 2 . Known Exits Taken . | . . . Unknown Exits Taken 2 | 1 1 . Scrap Searched . | . . . Spaces Dug 5 | . . 5 Terrain Destroyed 96 | . 58 38 Melee . | . . . Projectile . | . . . AOE 96 | . 58 38 Terrain Rammed . | . . . Walls Destroyed . | . . . Machines Disabled . | . . . Actions | -11 -10 -10 --------- Run | Yrd Mat Min Total 1015 | 76 817 122 Wait 88 | . 18 70 Move 760 | 51 678 31 Hop . | . . . Pick Up 19 | 2 17 . Fast Attach 7 | 7 . . Attach 3 | . . 3 Detach . | . . . Swap 19 | 1 13 5 Drop 7 | . 7 . Fire 112 | 15 84 13 Melee . | . . . Ram . | . . . Kick . | . . . Crush . | . . . Escape Stasis . | . . . Rewire . | . . . Trap . | . . . Miscellaneous . | . . . Route ------- -11/Scrapyard -10/Materials (discovered 3 exits: [*Mat x2] / [*Min]) -10/Mines History --------- Turn | Location | Event 11 | -11/Scrapyard | Discovered new exit (range 15) 134 | -11/Scrapyard | Entered Materials 219 | -10/Materials | Discovered new exit (range 16) 306 | -10/Materials | Build established: Mutant 675 | -10/Materials | Discovered new exit (range 15) 1274 | -10/Materials | Discovered new exit (range 15) 1525 | -10/Materials | Entered Mines 1526 | -10/Mines | Assembled infested the area 1539 | -10/Mines | Core integrity fell below 50% 1566 | -10/Mines | Destroyed 20 combat bots 1685 | -10/Mines | Core integrity fell below 20% 1688 | -10/Mines | Destroyed by D-53 Grenadier with Mini Grenade Launcher Last Messages --------------- 01545_ as-62936 destroyed. 01548_ The unstable cave ceiling collapses. 01549_ Acquired 4 matter. 01549_ K-01 Serf collects debris. 01551_ Acquired 2 matter. 01553_ K-01 Serf collects debris. 01563_ K-01 Serf destroyed. 01563_ K-01 Serf collects debris. 01566_ Acquired 22 matter. 01567_ K-01 Serf collects debris. 01665_ C-30 ARC bursts open, deploying its payload. 01672_ Laser Drill disabled. 01672_ T-07 Excavator destroyed. 01675_ Assault Rifle destroyed. 01676_ The unstable cave ceiling collapses. 01676_ Ion Engine destroyed. 01677_ Lgt. Treads destroyed. 01678_ D-53 Grenadier destroyed. 01678_ Switching to secondary target: D-53 Grenadier. 01679_ The unstable cave ceiling collapses. Map ----- +----------------------------------------------------+ | ????????????????????????????????? | | ????????????????????????????????? | | ????????????????????????????????? | | ????????????????????????????????? | | ????????????????????????????????? | | ????????????????????????????????? | | ????????????????????????????????? | | ????????????????????????????????? | | ????????????????????????????????? | | ????????????????????????????????? | | ????????????????????????????????? | | ????#???????????????????????????? | | ????????? ??????????????????????? | | ?#????????????? ????????????????? | | ?????????? ?????????????????????? | | #???#?????????? ????????????????? | | ?#??????????#???????????????????? | | ???????????????????#????????????? | | ?????????????? ?????????????????? | | ????????????????????????????????? | | ?###########????????????????????? | | ??# = ##???????#???????????? | | ??# ##??????????????????? | | ??# #??????????????????? | | ??# #????? ????????????? | | ??# @ #?????????#????????? | | ??# d #???? ?#???????????? | | ??# % #??????????????????? | | ??### ##??? ???? ????????? | | ????## # #???#? ?????????????? | | ????####### #????????#????#?????? | | ??????????# #????##? ### ?????? | | ??????#??## ##??# # ?????? | | ?????????## ##?# # #???????? | | #???????## ### " #???????? | | ??#?#??## # #???????? | | ???????# #???????? | | ???????# # #???????? | | ???#???## ## #???????? | | ????????#### #? #####???????? | | ???#?? ????######???????????????? | | ????????????????????????????????? | | ????????? ?????? ???????????????? | | ????????????????????????????????? | | ????????????????????????????????? | | ????????????????????????????????? | | ????????????????????????????????? | | ????????????????????????????????? | | ????????????????????????????????? | | ????????????????????????????????? | +----------------------------------------------------+ Best States ------------- Heat Dissipation 25 Energy Generation 10 Energy Capacity 250 Matter Stores 300 Matter Capacity 300 Sight Range 16 Terrain Scan Range 16 Terrain Scan Density 10 Core Shielding 20 Weapon Shielding 33 Evasion (%) 40 Recoil Reduction 2 Item Schematics ----------------- None Robot Schematics ------------------ None Fabricated ------------ Nothing Repaired ---------- Nothing Alien Tech Used ----------------- None Achievements -------------- None Challenges ------------ None Game ------ Seed ZioniteShadeTether Manual? 0 Play Time 00:10:02 Cumulative 359.6 hours Start 2025.06.28 @ 23:03:30 End 2025.06.28 @ 23:12:10 Sessions 1 Manual Loads 0 Difficulty Rogue Special Mode None Game No. 209 Rogue 209 Adventurer 0 Explorer 0 Win Type - Total 4 Types 2/0/1/1/0/0/0/0/0/0 Lore% 84 Gallery% 73 Achievement% 67 Wizard Run 0 Options --------- Layout 2 ASCII 0 Keyboard 1 Movement Vi Keybinds 0 Fullscreen 2 Font 16/Tamsyn Map View 55x47 Zoom Use 0% Tactical HUD 1 Map Filters NONE Filters NONE Steam 0 RUN: 99d964a8-d3b6-4e25-b5c9-8d86f9bb1fa9